bitfinex-derivatives/quotes_ETHF0:USTF0_20260123
["timestamp","ask_amount","ask_price","bid_price","bid_amount"]
[1769173777253,0.13846648,2938.3,2936.9,2.9]
[1769173777654,0.13846648,2938.1,2936.7,0.17048]
[1769173800279,0.13846648,2938.1,2936.8,0.17048]
[1769173800590,0.13846648,2938.3,2936.8,0.17048]
[1769173800774,0.13846648,2938.3,2936.8,3.21812079]
[1769173801981,0.13846648,2938.3,2936.9,3.839]
[1769173802475,0.13846648,2938.3,2936.8,4.01348]
[1769173802784,0.14307151,2938.1,2936.8,4.01348]
[1769173805486,0.14307151,2937.9,2936.8,4.01348]
[1769173806784,0.13901687,2938.3,2936.8,4.01348]
[1769173806986,1.205445,2938.2,2936.8,4.01348]
[1769173807184,0.30574785,2938.1,2936.8,7.06112079]
[1769173807385,0.30574785,2938.0,2936.8,7.06112079]
[1769173807685,0.13901687,2938.3,2936.8,7.06112079]
[1769173807887,1.34478064,2938.2,2936.8,7.06112079]
[1769173808086,0.30582798,2938.1,2936.8,7.06112079]
[1769173810791,0.30582798,2938.1,2937.1,0.17046]
[1769173810982,0.00510751,2938.4,2937.1,3.21810079]
[1769173811182,0.30585297,2938.3,2937.1,3.21810079]
[1769173811383,0.14412438,2938.4,2937.1,3.21810079]
[1769173811583,0.30577524,2938.3,2937.1,3.21810079]
[1769173811785,0.14412438,2938.4,2937.1,3.21810079]
[1769173811988,0.30577547,2938.3,2937.1,3.21810079]
[1769173812184,0.14412438,2938.4,2937.1,3.21810079]
[1769173812384,0.30572276,2938.3,2937.1,3.21810079]
[1769173812587,0.14412438,2938.4,2937.1,3.21810079]
[1769173812879,0.30572273,2938.3,2937.1,3.21810079]
[1769173813081,0.14412438,2938.4,2937.1,3.21810079]
[1769173813282,0.14412438,2938.4,2937.1,0.17046]
[1769173813482,0.13901687,2938.2,2937.1,0.17046]
[1769173819598,0.00510751,2938.4,2937.1,0.17046]
[1769173819794,0.00510751,2938.4,2937.1,3.21810079]
[1769173821499,0.00510751,2938.4,2937.2,0.17045]
[1769173821693,0.00510751,2938.4,2937.3,0.24382735]
[1769173821899,0.0039945,2938.7,2937.5,0.00510751]
[1769173822101,0.0039945,2938.7,2937.5,0.24385861]
[1769173822400,0.0039945,2938.7,2937.5,3.2914994]
[1769173822699,0.0039945,2938.7,2937.6,2.9]
[1769173822895,0.0039945,2938.7,2937.7,3.881]
[1769173827204,1e-08,2938.7,2937.7,3.881]
[1769173827602,1e-08,2938.7,2937.8,0.90784591]
[1769173827802,0.13901687,2939.4,2937.8,0.90784591]
[1769173828005,0.44402374,2939.3,2937.8,0.90784591]
[1769173828307,0.13901687,2939.3,2937.8,0.90784591]
[1769173828803,0.14148621,2939.3,2937.8,0.90784591]
[1769173829004,0.00246934,2939.3,2938.2,0.90784591]
[1769173829310,0.00246934,2939.3,2938.3,0.17039]
[1769173829609,0.13901687,2939.7,2938.4,3.07039]
[1769173830110,0.17028,2940.3,2938.4,3.07039]
[1769173830111,0.13901687,2940.2,2938.4,3.07039]
[1769173830608,0.14169646,2940.2,2938.4,3.07039]
[1769173830910,0.13901687,2940.0,2939.0,0.00510751]
[1769173837316,0.14230222,2939.4,2939.0,0.00510751]
[1769173837516,0.14230222,2939.4,2938.5,0.17038]
[1769173837715,0.14230222,2939.4,2938.3,0.0030574]
[1769173838413,0.14230222,2939.4,2938.4,0.90702073]
[1769173838614,0.14230222,2939.7,2938.4,0.90702073]
[1769173838811,0.14230222,2939.7,2938.7,0.90702073]
[1769173842414,0.00510751,2939.8,2938.7,0.90702073]
[1769173842615,0.00510751,2939.8,2939.0,0.90702073]
[1769173844925,0.00267959,2940.2,2939.3,0.90702073]
[1769173845720,0.00267959,2940.2,2939.6,0.90702073]
[1769173845919,0.14230222,2940.5,2939.6,0.90702073]
[1769173846525,0.14230222,2941.2,2939.6,0.90702073]
[1769173847025,0.14587694,2941.2,2939.6,0.90702073]
[1769173848318,0.14587694,2941.2,2939.9,0.90702073]
[1769173849028,0.14587694,2941.2,2940.2,0.90702073]
[1769173849926,0.14587694,2941.2,2939.7,0.17031]
[1769173849927,0.14587694,2941.2,2939.9,0.90702073]
[1769173850331,0.14587694,2941.2,2940.2,0.90702073]
[1769173851819,0.14587694,2941.2,2939.9,1.07732073]
[1769173853727,0.14587694,2941.2,2939.9,3.97732073]
[1769173855633,0.14230222,2941.0,2939.9,3.0703]
[1769173856229,0.14230222,2941.0,2939.6,4.31202073]
[1769173856929,0.14230222,2941.0,2939.7,2.9]
[1769173858133,0.14230222,2941.0,2939.9,0.90702073]
[1769173859933,0.14230222,2941.0,2939.7,3.07031]
[1769173860133,0.14230222,2941.0,2939.7,0.17031]
[1769173860434,0.14230222,2941.0,2939.9,0.90702073]
[1769173861333,0.14230222,2941.0,2939.7,0.17031]
[1769173865643,0.15139731,2940.6,2939.2,8.18402073]
[1769173865943,0.15139731,2940.6,2939.3,2.9]
[1769173866140,0.14818845,2940.3,2939.1,0.17544751]
[1769173866436,0.14818845,2940.3,2939.2,0.90702073]
[1769173871537,0.14818845,2940.7,2939.5,0.90702073]
[1769173871737,0.14818845,2941.1,2939.8,0.90702073]
[1769173880849,0.00357472,2941.2,2939.5,3.04764079]
[1769173880850,1.05520918,2940.7,2939.5,3.04764079]
[1769173881051,0.14818845,2940.6,2939.3,3.80702073]
[1769173881759,0.14818845,2940.6,2939.1,0.17544751]
[1769173882154,0.14818845,2940.6,2939.3,0.90702073]
[1769173884959,0.14818845,2941.0,2939.9,0.90702073]
[1769173885153,0.30715422,2940.9,2939.9,0.90702073]
[1769173885353,0.14818845,2941.0,2939.9,0.90702073]
[1769173890370,0.00357472,2941.2,2940.2,0.90702073]
[1769173891364,0.14933371,2941.2,2940.2,0.90702073]
[1769173892267,0.14933371,2941.2,2939.9,1.07731073]
[1769173892969,0.14933371,2941.2,2939.9,0.17029]
[1769173895967,0.14933371,2941.2,2940.0,0.17029]
[1769173896768,0.00357472,2941.2,2940.0,0.17029]
[1769173897065,0.00357472,2941.2,2940.0,0.25290056]
[1769173897475,0.00357472,2941.2,2940.0,3.30054135]
[1769173898775,0.00357472,2941.2,2940.1,0.08263874]
[1769173898975,0.00357472,2941.2,2940.1,0.25291874]
[1769173899179,0.00357472,2941.2,2940.1,3.30055953]
[1769173899878,0.00357472,2941.2,2940.1,3.21792079]
[1769173901682,0.00357472,2941.2,2940.1,0.17028]
[1769173910991,0.00357472,2941.2,2940.2,0.17028]
[1769173911291,0.1455,2941.5,2940.3,0.17027]
[1769173912182,0.14913687,2941.5,2940.6,0.00510751]
[1769173912382,0.14913687,2941.5,2940.6,0.00922599]
[1769173915499,0.14913687,2941.5,2940.6,0.17948599]
[1769173919091,0.14882941,2941.4,2940.6,0.00922599]
[1769173919992,0.14882941,2941.2,2939.8,7.3143379]
[1769173920192,0.14882941,2941.2,2939.8,3.907]
[1769173920992,0.14882941,2941.2,2939.8,3.91054335]
[1769173921893,0.00510751,2941.3,2940.0,1.07655927]
[1769173922095,0.00510751,2941.3,2940.0,4.12420006]
[1769173922496,0.00510751,2941.3,2940.1,0.17029]
[1769173922698,0.00510751,2941.3,2940.1,3.21793079]
[1769173922899,0.00510751,2941.3,2940.2,3.04764079]
[1769173923098,0.00510751,2941.3,2940.2,3.21792079]
[1769173923295,0.00510751,2941.3,2940.4,0.90626927]
[1769173924600,0.00510751,2941.3,2940.4,3.95391006]
[1769173929096,0.14913687,2941.5,2940.5,0.17026]
[1769173929295,0.14913687,2941.5,2940.6,0.00510751]
[1769173929496,0.14913687,2941.5,2940.7,3.938]
[1769173935102,0.13959561,2942.4,2940.8,0.90626927]
[1769173935307,1.20526663,2942.3,2940.8,0.90626927]
[1769173935614,0.30730703,2942.2,2940.9,0.17024]
[1769173935806,0.13959561,2942.4,2940.9,3.57424]
[1769173936003,1.20521106,2942.3,2940.9,3.57424]
[1769173936203,0.4468469,2942.2,2941.0,7.352]
[1769173936506,0.13959561,2942.2,2941.0,10.252]
[1769173937102,0.00266535,2942.4,2941.0,10.252]
[1769173937298,0.00266535,2942.4,2941.2,0.90626927]
[1769173940211,0.00266535,2942.4,2941.2,0.98971125]
[1769173941110,0.00266535,2942.4,2941.2,0.90626927]
[1769173942209,0.00266535,2942.4,2941.2,1.07648927]
[1769173944408,0.00266535,2942.4,2941.2,0.17022]
[1769173944607,0.14226096,2942.4,2941.3,3.961]
[1769173945314,0.14226096,2942.4,2941.2,3.962]
[1769173945513,0.14226096,2942.4,2940.7,3.21789079]
[1769173945710,0.14226096,2942.4,2940.8,10.265]
[1769173946812,0.14226096,2942.4,2940.8,11.17126927]
[1769173947009,0.00266535,2942.4,2941.2,0.90626927]
[1769173949516,0.00266535,2942.4,2941.2,0.98953643]
[1769173951216,0.00266535,2942.4,2941.1,0.17023]
[1769173951520,0.00266535,2942.4,2941.3,7.374]
[1769173952220,0.14650985,2942.4,2941.4,3.971]
[1769173952417,0.14650985,2942.4,2941.1,0.17023]
[1769173952617,0.14650985,2942.4,2941.2,3.972]
[1769173954922,0.14650985,2942.4,2941.2,4.87751428]
[1769173957124,0.1438445,2942.2,2940.7,3.403]
[1769173957322,0.1438445,2942.2,2940.8,3.979]
[1769173958517,0.1438445,2941.9,2940.8,3.979]
[1769173958718,0.1438445,2941.9,2940.6,3.98088179]
[1769173958925,0.1438445,2941.9,2940.7,3.984]
[1769173962727,0.1438445,2941.9,2940.6,1.08088179]
[1769173962926,0.1438445,2941.9,2940.7,3.989]
[1769173964330,0.1438445,2941.9,2940.8,0.90551428]
[1769173966330,0.1438445,2941.9,2940.6,0.00510751]
[1769173966532,0.1438445,2941.8,2940.7,3.994]
[1769173967728,0.1438445,2941.8,2940.6,0.00510751]
[1769173967926,0.17018,2942.0,2940.6,0.00510751]
[1769173967927,1.04935878,2941.7,2940.6,0.00510751]
[1769173968729,0.1438445,2941.6,2940.6,0.00510751]
[1769173971236,0.1438445,2941.3,2940.6,0.00510751]
[1769173971739,0.1438445,2941.3,2940.0,0.90551428]
[1769173971931,0.1438445,2941.3,2940.3,0.90551428]
[1769173974033,0.1438445,2941.3,2939.9,2.9]
[1769173974239,0.1438445,2941.3,2940.0,0.90551428]
[1769173982440,0.00509875,2941.4,2940.6,0.90551428]
[1769173985340,0.00509875,2941.4,2940.3,0.90551428]
[1769173986544,0.00509875,2941.4,2940.6,0.90551428]
[1769173994544,0.17018,2941.9,2940.0,7.4]
[1769173994545,0.17018,2941.9,2940.8,0.90551428]
[1769173995451,0.30714328,2941.8,2940.8,0.90551428]
[1769173995660,0.17018,2941.9,2940.8,0.90551428]
[1769173995851,0.30714531,2941.8,2940.7,0.00509875]
[1769173996055,0.32101079,2941.9,2940.7,0.91061303]
[1769173996245,0.30714556,2941.8,2940.7,0.91061303]
[1769173996444,0.15083079,2941.8,2940.7,0.00509875]
[1769173996749,0.15083079,2941.6,2940.7,0.00509875]
[1769173998153,0.17018,2941.9,2940.7,0.00509875]
[1769173998354,0.30719788,2941.8,2940.7,0.00509875]
[1769173998554,0.17018,2941.9,2940.7,0.91061303]
[1769173998853,0.30718783,2941.8,2940.7,0.91061303]
[1769173999055,0.17018,2941.9,2940.7,0.91061303]
[1769173999255,0.30718836,2941.8,2940.7,0.91061303]
[1769173999445,0.17018,2941.9,2940.7,0.91061303]
[1769173999645,0.30716521,2941.8,2940.7,0.91061303]
[1769173999856,0.17018,2941.9,2940.7,0.91061303]
[1769174000056,0.30716965,2941.8,2940.7,0.91061303]
[1769174000253,0.15083079,2942.0,2940.7,0.91061303]
[1769174000457,0.30714044,2941.9,2940.7,0.91061303]
[1769174000655,0.30714044,2941.8,2940.7,0.91061303]
[1769174000855,0.15083079,2942.0,2940.7,0.91061303]
[1769174001060,0.30714042,2941.9,2940.7,0.91061303]
[1769174001360,0.15083079,2942.0,2940.7,0.91061303]
[1769174001658,0.30711633,2941.9,2940.7,0.91061303]
[1769174001854,0.15083079,2942.0,2940.7,0.91061303]
[1769174002050,0.30711636,2941.9,2940.7,0.91061303]
[1769174002250,0.15083079,2942.0,2940.7,0.91061303]
[1769174002448,0.30709232,2941.9,2940.7,0.91061303]
[1769174002651,0.15083079,2942.0,2940.7,0.91061303]
[1769174002857,0.30709184,2941.9,2940.7,0.91061303]
[1769174003057,0.15083079,2942.0,2940.7,0.91061303]
[1769174003260,0.30709186,2941.9,2940.7,0.91061303]
[1769174003459,0.15083079,2942.0,2940.7,0.91061303]
[1769174003660,0.30707898,2941.9,2940.7,0.91061303]
[1769174003863,0.15083079,2942.0,2940.7,0.91061303]
[1769174004059,0.30707895,2941.9,2940.7,0.91061303]
[1769174004261,0.15083079,2942.0,2940.7,0.91061303]
[1769174004557,0.30707035,2941.9,2940.7,0.91061303]
[1769174004758,0.15083079,2942.0,2940.7,0.91061303]
[1769174004958,0.30706483,2941.9,2940.7,0.91061303]
[1769174005161,0.15083079,2942.0,2940.7,0.91061303]
[1769174005359,0.30705563,2941.9,2940.7,0.91061303]
[1769174005560,0.15083079,2941.9,2940.7,0.00509875]
[1769174005961,0.15083079,2941.7,2940.7,0.00509875]
[1769174010262,0.15083079,2942.1,2940.7,0.91061303]
[1769174010467,1.20705652,2942.0,2940.7,0.91061303]
[1769174010670,0.30731726,2941.9,2940.7,0.91061303]
[1769174010966,0.15083079,2942.0,2940.7,0.91061303]
[1769174011169,0.30731692,2941.9,2940.7,0.91061303]
[1769174011364,0.15083079,2942.0,2941.0,0.90551428]
[1769174011667,0.15349614,2942.4,2941.0,0.90551428]
[1769174011968,0.15083079,2942.2,2941.0,0.90551428]
[1769174012167,1.20721141,2942.1,2941.0,0.90551428]
[1769174012363,0.30735293,2942.0,2940.8,0.90551428]
[1769174012569,0.30741496,2941.9,2940.7,0.00509875]
[1769174012770,0.14981064,2941.9,2940.7,0.00509875]
[1769174013069,0.14981064,2941.8,2940.7,0.00509875]
[1769174023268,0.45743309,2941.7,2940.7,0.00509875]
[1769174023466,0.14981064,2941.7,2940.7,0.00509875]
[1769174032088,0.14981064,2942.1,2940.7,0.00509875]
[1769174032276,1.20863202,2942.0,2940.7,0.00509875]
[1769174032476,1.20863202,2941.9,2940.7,0.00509875]
[1769174032787,0.30771558,2941.8,2940.7,0.00509875]
[1769174032987,0.14981064,2942.1,2940.7,0.00509875]
[1769174033189,0.00266535,2942.4,2940.7,0.00509875]
[1769174033190,1.35842188,2942.0,2940.7,0.00509875]
[1769174033391,1.20861124,2941.9,2940.7,0.00509875]
[1769174033593,0.3077101,2941.8,2940.7,0.00509875]
[1769174033895,0.14981064,2942.0,2940.7,0.00509875]
[1769174034099,0.14981064,2941.8,2940.7,0.00509875]
[1769174035794,0.45753233,2941.7,2940.7,0.00509875]
[1769174035995,0.14981064,2941.7,2940.7,0.00509875]
[1769174040594,0.31998064,2942.2,2940.8,3.04764079]
[1769174040797,0.45751971,2942.1,2940.9,3.04764079]
[1769174040999,0.30770907,2942.0,2940.9,3.04764079]
[1769174041193,0.14981064,2942.1,2940.8,3.04764079]
[1769174042801,0.14981064,2942.1,2940.9,3.04764079]
[1769174042995,0.14981064,2942.1,2941.0,3.04764079]
[1769174043196,0.00266535,2942.4,2941.3,0.90589188]
[1769174046704,0.00266535,2942.4,2941.4,4.043]
[1769174047100,0.14714313,2943.0,2941.4,4.043]
[1769174047405,0.30687387,2942.9,2941.4,4.1145189]
[1769174047606,0.14714313,2943.0,2941.4,4.1145189]
[1769174047805,0.30675986,2942.9,2941.4,4.1145189]
[1769174048004,0.14714313,2943.0,2941.4,4.1145189]
[1769174048205,0.14714313,2943.0,2941.3,3.21786079]
[1769174048206,0.13415815,2942.8,2941.3,3.21786079]
[1769174048400,0.13415815,2942.8,2941.4,4.047]
[1769174049701,0.13415815,2942.8,2941.5,4.051]
[1769174057016,0.00199844,2943.0,2941.5,4.12141933]
[1769174058319,0.13615659,2943.0,2941.5,4.12141933]
[1769174060419,0.13615659,2943.0,2941.6,3.403]
[1769174063119,0.13615659,2943.0,2941.6,4.07]
[1769174067321,0.44103013,2942.9,2941.6,4.07]
[1769174067522,0.13415815,2942.9,2941.6,4.07]
[1769174069226,0.30719955,2942.8,2941.6,4.07]
[1769174069422,0.13415815,2942.9,2941.6,4.07]
[1769174069621,0.30720814,2942.8,2941.6,4.07]
[1769174069818,0.13415815,2942.9,2941.6,4.07]
[1769174070024,0.30720985,2942.8,2941.6,4.07]
[1769174070322,0.13415815,2942.9,2941.6,4.07]
[1769174070522,0.30722739,2942.8,2941.6,4.07]
[1769174070825,0.13415815,2942.9,2941.6,4.07]
[1769174071129,0.13415815,2942.7,2941.4,4.25521]
[1769174071331,0.30722647,2942.6,2941.4,4.25521]
[1769174071628,0.13415815,2942.7,2941.4,4.25521]
[1769174072418,0.30753223,2942.6,2941.4,4.25521]
[1769174072624,0.13415815,2942.7,2941.4,4.25521]
[1769174072832,0.30753466,2942.6,2941.4,4.25521]
[1769174073032,0.13415815,2942.7,2941.4,4.25521]
[1769174073232,0.30753188,2942.6,2941.4,4.25521]
[1769174073529,0.13415815,2942.7,2941.4,4.25521]
[1769174073726,0.30754352,2942.6,2941.4,4.25521]
[1769174073922,0.13415815,2942.7,2941.4,4.25521]
[1769174074128,0.30754354,2942.6,2941.4,4.25521]
[1769174074328,0.13415815,2942.7,2941.4,4.25521]
[1769174074528,0.30755354,2942.6,2941.4,4.25521]
[1769174074723,0.13415815,2942.7,2941.4,4.25521]
[1769174074925,0.30755355,2942.6,2941.5,0.90533897]
[1769174075124,0.13415815,2942.7,2941.5,0.90533897]
[1769174075329,0.30755358,2942.6,2941.5,0.90533897]
[1769174075527,0.13415815,2942.7,2941.4,0.17021]
[1769174075727,0.14373917,2942.5,2941.4,0.17021]
[1769174075927,0.14373917,2942.5,2941.4,4.26421]
[1769174078634,1.04907814,2942.9,2941.6,0.90533897]
[1769174078934,1.20584987,2942.8,2941.6,0.90533897]
[1769174079135,0.30755004,2942.7,2941.6,0.90533897]
[1769174079435,0.30755004,2942.6,2941.6,0.90533897]
[1769174079628,0.14373917,2942.8,2941.6,0.90533897]
[1769174079828,1.20583986,2942.7,2941.6,0.90533897]
[1769174080126,0.30754778,2942.6,2941.6,0.90533897]
[1769174080328,0.14373917,2942.8,2941.6,0.90533897]
[1769174080534,1.20580927,2942.7,2941.6,0.90533897]
[1769174080832,0.30753998,2942.6,2941.6,0.90533897]
[1769174081034,0.14373917,2942.8,2941.6,0.90533897]
[1769174081234,1.20580927,2942.7,2941.6,0.90533897]
[1769174081534,0.30753998,2942.6,2941.6,0.90533897]
[1769174081734,0.14373917,2942.8,2941.6,0.90533897]
[1769174081938,1.20578361,2942.7,2941.6,0.90533897]
[1769174082123,0.30753345,2942.6,2941.6,0.90533897]
[1769174082328,0.14373917,2942.8,2941.6,0.90533897]
[1769174082628,1.20576351,2942.7,2941.6,0.90533897]
[1769174082829,0.30752835,2942.6,2941.6,0.90533897]
[1769174083029,0.14373917,2942.8,2941.6,0.90533897]
[1769174083236,1.20576115,2942.7,2941.6,0.90533897]
[1769174083424,0.30752768,2942.6,2941.6,0.90533897]
[1769174083630,0.14373917,2942.8,2941.6,0.90533897]
[1769174083830,1.20574766,2942.7,2941.6,0.90533897]
[1769174084032,0.30752425,2942.6,2941.6,0.90533897]
[1769174084331,0.14373917,2942.8,2941.6,0.90533897]
[1769174084532,1.20573888,2942.7,2941.6,0.90533897]
[1769174084726,0.14373917,2942.8,2941.6,0.90533897]
[1769174084727,0.30752195,2942.6,2941.6,0.90533897]
[1769174084934,0.14373917,2942.8,2941.6,0.90533897]
[1769174085136,1.20573897,2942.7,2941.6,0.90533897]
[1769174085336,0.30752198,2942.7,2941.6,0.90533897]
[1769174085535,0.30752198,2942.6,2941.6,0.90533897]
[1769174085737,0.17211844,2943.0,2941.3,3.04764079]
[1769174085738,0.90533897,2942.0,2941.3,3.04764079]
[1769174085937,1.04907814,2942.0,2941.0,4.26669711]
[1769174086138,1.04907814,2942.0,2940.9,3.04764079]
[1769174087139,1.04907814,2942.0,2940.8,3.04764079]
[1769174088342,1.04907814,2942.0,2940.7,10.06573954]
[1769174088846,0.14373917,2942.0,2940.9,0.90533897]
[1769174090441,1.07549897,2942.3,2940.9,0.90533897]
[1769174090741,0.30713924,2942.2,2940.9,0.90533897]
[1769174090942,0.30713924,2942.1,2940.9,0.90533897]
[1769174091142,0.17016,2942.3,2940.9,0.90533897]
[1769174091342,0.307138,2942.2,2940.9,0.90533897]
[1769174091641,0.307138,2942.1,2940.9,0.90533897]
[1769174091842,0.17016,2942.3,2940.9,0.90533897]
[1769174092038,0.30708692,2942.2,2941.2,0.90533897]
[1769174092241,0.30708692,2942.1,2941.2,0.90533897]
[1769174092441,0.17016,2942.3,2941.2,0.90533897]
[1769174092640,0.30705148,2942.2,2941.2,0.90533897]
[1769174092832,0.30705148,2942.1,2941.2,0.90533897]
[1769174093036,0.17016,2942.3,2941.2,0.90533897]
[1769174093037,0.14373917,2942.2,2941.2,0.90533897]
[1769174093342,0.30705724,2942.1,2941.2,0.90533897]
[1769174093543,0.14373917,2942.2,2941.2,0.90533897]
[1769174093744,0.30701894,2942.1,2941.2,0.90533897]
[1769174093939,0.14373917,2942.2,2941.2,0.90533897]
[1769174094140,0.45075911,2942.1,2940.7,7.21343772]
[1769174094446,0.14373917,2942.1,2941.0,0.90533897]
[1769174094742,0.17016,2942.3,2941.0,0.90533897]
[1769174095046,0.30697976,2942.2,2941.3,0.90533897]
[1769174095246,0.17016,2942.3,2941.3,0.90533897]
[1769174095446,0.30697922,2942.2,2941.3,0.90533897]
[1769174095746,0.17016,2942.3,2941.3,0.90533897]
[1769174095943,0.30696285,2942.2,2941.3,0.90533897]
[1769174096145,0.17016,2942.3,2941.3,0.90533897]
[1769174096446,0.30696285,2942.2,2941.3,0.90533897]
[1769174096645,0.17016,2942.3,2941.3,0.90533897]
[1769174096845,0.30696133,2942.2,2941.0,0.90533897]
[1769174097052,1.21923814,2942.3,2941.0,0.90533897]
[1769174097348,0.14373917,2942.1,2940.7,3.81043772]
[1769174097648,0.14373917,2942.1,2940.8,4.132]
[1769174100352,0.14373917,2942.1,2941.0,0.90533897]
[1769174100553,0.17017,2942.2,2941.0,0.90533897]
[1769174100752,0.17017,2942.2,2941.3,0.90533897]
[1769174101254,0.17017,2942.2,2941.0,0.90533897]
[1769174102054,0.15088902,2942.1,2941.0,0.90533897]
[1769174102456,1.05622799,2942.0,2940.7,5.04843772]
[1769174102650,0.15088902,2941.9,2940.7,0.00509875]
[1769174102947,0.15088902,2942.3,2941.0,0.90533897]
[1769174103145,0.30697005,2942.2,2941.6,0.90533897]
[1769174103346,0.17015,2942.5,2941.6,0.90533897]
[1769174103554,1.20413532,2942.4,2941.3,0.90533897]
[1769174103756,1.20413532,2942.3,2941.3,0.90533897]
[1769174103947,0.17015,2942.5,2941.6,0.90533897]
[1769174107255,0.17015,2942.5,2941.3,0.90533897]
[1769174108950,0.90533897,2942.4,2941.0,0.9891278]
[1769174109151,0.15959057,2942.3,2941.0,0.90533897]
[1769174109351,0.90533897,2942.1,2940.9,7.534]
[1769174110856,1.06492954,2942.1,2940.7,2.90509875]
[1769174111056,0.90533897,2941.8,2940.7,0.00509875]
[1769174111458,0.90533897,2942.1,2940.7,0.91043772]
[1769174111658,0.30718281,2942.0,2940.7,0.91043772]
[1769174111858,0.90533897,2942.1,2940.7,0.91043772]
[1769174112156,0.30718684,2942.0,2940.7,0.91043772]
[1769174112358,0.90533897,2942.1,2940.7,0.91043772]
[1769174112359,0.30720706,2941.9,2940.7,0.91043772]
[1769174112561,0.17018,2942.0,2940.7,0.91043772]
[1769174113057,0.30720693,2941.9,2940.7,0.91043772]
[1769174113256,0.17018,2942.0,2940.7,0.91043772]
[1769174113446,0.3072396,2941.9,2940.7,0.91043772]
[1769174113645,0.17018,2942.0,2940.7,0.91043772]
[1769174113854,0.30723825,2941.9,2940.7,0.91043772]
[1769174114059,0.17018,2942.0,2940.7,0.91043772]
[1769174114460,0.30728308,2941.9,2940.7,0.91043772]
[1769174114662,0.17018,2942.0,2940.7,0.91043772]
[1769174114863,0.30728308,2941.9,2940.7,0.91043772]
[1769174115055,0.17018,2942.0,2940.7,0.91043772]
[1769174115258,0.3072747,2941.9,2940.7,0.91043772]
[1769174115557,0.17018,2942.0,2940.7,0.91043772]
[1769174115758,0.30735328,2941.9,2940.7,0.91043772]
[1769174116059,0.17018,2942.0,2940.7,0.91043772]
[1769174116258,0.30734382,2941.9,2940.7,0.91043772]
[1769174116460,0.17018,2942.0,2940.7,0.91043772]
[1769174116659,0.30733868,2941.9,2940.7,0.91043772]
[1769174116966,0.17018,2942.0,2940.7,0.91043772]
[1769174117165,0.30733869,2941.9,2940.7,0.91043772]
[1769174117465,0.17018,2942.0,2940.7,0.91043772]
[1769174117665,0.30732325,2941.9,2940.7,0.91043772]
[1769174117867,0.17018,2942.0,2940.7,0.91043772]
[1769174118059,0.3073156,2941.9,2940.7,0.91043772]
[1769174118261,0.17018,2942.0,2940.7,0.91043772]
[1769174118562,0.30731899,2941.9,2940.7,0.91043772]
[1769174118764,0.17018,2942.0,2940.7,0.91043772]
[1769174118964,0.30731025,2941.9,2940.7,0.91043772]
[1769174119162,0.17018,2942.0,2940.7,0.91043772]
[1769174119362,0.30730699,2941.9,2940.7,0.91043772]
[1769174119560,0.17018,2942.0,2940.7,0.91043772]
[1769174119765,0.30729284,2941.9,2940.7,0.91043772]
[1769174119963,0.17018,2942.0,2940.7,0.91043772]
[1769174120163,0.30729529,2941.9,2940.7,0.91043772]
[1769174120366,0.17018,2942.0,2940.7,0.91043772]
[1769174120573,0.30728472,2941.9,2940.7,0.91043772]
[1769174120774,0.17018,2942.0,2940.7,0.91043772]
[1769174121069,0.30728506,2941.9,2940.7,0.91043772]
[1769174121268,0.32974057,2942.5,2941.0,1.00477541]
[1769174121468,1.20525519,2942.4,2941.0,1.00477541]
[1769174121665,1.20525519,2942.3,2941.0,1.00477541]
[1769174121864,0.30724675,2942.2,2941.0,1.00477541]
[1769174122065,0.32974057,2942.5,2941.0,1.00477541]
[1769174122265,1.20525879,2942.4,2941.0,1.00477541]
[1769174122461,1.20525879,2942.3,2941.0,1.00477541]
[1769174122669,0.30725293,2942.2,2941.0,1.00477541]
[1769174122977,0.32974057,2942.5,2941.0,1.00477541]
[1769174123266,1.20525768,2942.4,2941.0,1.00477541]
[1769174123469,1.20525768,2942.3,2941.0,1.00477541]
[1769174123671,0.30724733,2942.2,2941.0,1.00477541]
[1769174123868,0.32974057,2942.5,2941.0,1.00477541]
[1769174124072,1.20524403,2942.4,2941.0,1.00477541]
[1769174124271,1.20524403,2942.3,2941.0,1.00477541]
[1769174124474,0.30724391,2942.2,2941.0,1.00477541]
[1769174124769,0.32974057,2942.5,2941.0,1.00477541]
[1769174124976,1.20523168,2942.4,2941.0,1.00477541]
[1769174125179,1.36482225,2942.3,2941.0,0.90533897]
[1769174125375,0.30724061,2942.2,2941.0,0.90533897]
[1769174127070,1.06492954,2942.1,2940.8,2.9]
[1769174127473,0.30726011,2942.0,2940.8,2.9]
[1769174127670,1.06492954,2942.1,2940.7,3.40809875]
[1769174127874,0.30726482,2942.0,2940.7,3.40809875]
[1769174128077,1.06492954,2942.1,2940.7,3.40809875]
[1769174128270,0.30727305,2942.0,2940.7,6.30809875]
[1769174128468,0.15959057,2942.0,2940.7,0.00509875]
[1769174129478,0.46684953,2941.9,2940.7,0.00509875]
[1769174129678,0.15959057,2941.9,2940.7,0.00509875]
[1769174133283,0.17017,2942.2,2940.9,0.90533897]
[1769174134170,1.06163462,2942.7,2941.2,0.90533897]
[1769174134376,1.20511643,2942.6,2941.5,0.90533897]
[1769174134677,1.20511643,2942.5,2941.5,0.90533897]
[1769174134976,0.30721915,2942.4,2941.5,0.90533897]
[1769174135175,1.06163462,2942.7,2941.5,0.90533897]
[1769174135377,1.20499202,2942.6,2941.5,0.90533897]
[1769174135574,0.3072162,2942.5,2941.5,0.90533897]
[1769174135774,0.3072162,2942.4,2941.5,0.90533897]
[1769174135983,1.06163462,2942.7,2941.5,0.90533897]
[1769174136182,0.30720843,2942.6,2941.5,0.90533897]
[1769174136378,0.30720843,2942.5,2941.5,0.90533897]
[1769174136575,0.17014,2942.8,2941.5,0.90533897]
[1769174136776,0.30719442,2942.7,2941.5,0.90533897]
[1769174136973,0.30719442,2942.6,2941.2,0.08549837]
[1769174137177,0.17014,2942.8,2941.2,0.08549837]
[1769174137378,0.30715115,2942.7,2941.2,0.08549837]
[1769174137583,0.30715115,2942.6,2941.3,2.98548478]
[1769174137882,0.17014,2942.8,2941.3,2.98548478]
[1769174138082,0.30715116,2942.7,2941.3,2.98548478]
[1769174138271,0.17014,2942.8,2941.3,2.98548478]
[1769174138472,0.30708332,2942.7,2941.3,2.98548478]
[1769174138679,0.00199844,2943.0,2941.5,0.990722]
[1769174138976,0.30707324,2942.9,2941.5,5.150722]
[1769174139176,0.00199844,2943.0,2941.5,5.150722]
[1769174139372,0.3069752,2942.9,2941.5,5.150722]
[1769174139576,0.00199844,2943.0,2941.5,5.150722]
[1769174139780,0.30697501,2942.9,2941.5,5.150722]
[1769174139979,0.00199844,2943.0,2941.5,5.150722]
[1769174140184,0.30697502,2942.9,2941.5,5.150722]
[1769174140483,0.00199844,2943.0,2941.5,5.150722]
[1769174140884,0.15629565,2942.9,2941.5,4.16]
[1769174141678,0.15629565,2942.9,2941.3,5.94764079]
[1769174141878,0.15629565,2942.9,2941.3,2.9]